[Event "*** Titled Tuesday Blitz"]
[Site "Chess.com"]
[Date "2019.07.02"]
[Round "1"]
[White "nubair1198"]
[Black "senecacrane"]
[Result "1-0"]
[WhiteElo "2669"]
[BlackElo "2325"]
[TimeControl "180+2"]
[EndTime "13:08:02 PDT"]
[Termination "nubair1198 won by resignation"]

1. Nf3 {[%clk 0:03:01.9]} 1... d5 {[%clk 0:03:00.5]} 2. d4 {[%clk 0:03:02.5]}
2... Nf6 {[%clk 0:03:01.1]} 3. c4 {[%clk 0:03:04]} 3... e6 {[%clk 0:03:02.1]} 4.
Nc3 {[%clk 0:03:05.5]} 4... Be7 {[%clk 0:03:02.8]} 5. Bg5 {[%clk 0:03:05.6]}
5... Nbd7 {[%clk 0:03:02.9]} 6. cxd5 {[%clk 0:03:06.2]} 6... exd5 {[%clk
0:03:04]} 7. e3 {[%clk 0:03:07.3]} 7... c6 {[%clk 0:03:05.2]} 8. Bd3 {[%clk
0:03:08.8]} 8... h6 {[%clk 0:03:06.5]} 9. Bh4 {[%clk 0:03:09.1]} 9... Nh5 {[%clk
0:03:07.5]} 10. Bxe7 {[%clk 0:03:08.4]} 10... Qxe7 {[%clk 0:03:09.4]} 11. O-O
{[%clk 0:03:10]} 11... O-O {[%clk 0:03:09.3]} 12. Rb1 {[%clk 0:03:08]} 12... a5
{[%clk 0:03:08.8]} 13. a3 {[%clk 0:03:08.8]} 13... Re8 {[%clk 0:03:01.4]} 14. b4
{[%clk 0:03:09.5]} 14... axb4 {[%clk 0:03:02]} 15. axb4 {[%clk 0:03:11.4]} 15...
b5 {[%clk 0:02:59]} 16. e4 {[%clk 0:03:10.2]} 16... dxe4 {[%clk 0:02:48.1]} 17.
Bxe4 {[%clk 0:03:10.5]} 17... Bb7 {[%clk 0:02:38.2]} 18. Re1 {[%clk 0:02:52.9]}
18... Qd6 {[%clk 0:02:05.1]} 19. Nxb5 {[%clk 0:02:52.3]} 19... cxb5 {[%clk
0:02:06.4]} 20. Bxb7 {[%clk 0:02:54.2]} 20... Rab8 {[%clk 0:01:53.7]} 21. Rxe8+
{[%clk 0:02:43.8]} 21... Rxe8 {[%clk 0:01:55.6]} 22. g3 {[%clk 0:02:31.6]} 22...
Nb6 {[%clk 0:01:26.1]} 23. Ne5 {[%clk 0:02:26]} 23... Nf6 {[%clk 0:01:14.5]} 24.
Qb3 {[%clk 0:02:14.5]} 24... Qxd4 {[%clk 0:00:39]} 25. Qxf7+ {[%clk 0:02:13.9]}
25... Kh8 {[%clk 0:00:36.8]} 26. Ng6+ {[%clk 0:02:04]} 26... Kh7 {[%clk
0:00:38.1]} 27. Nf4 {[%clk 0:02:03.9]} 27... Nc4 {[%clk 0:00:23.7]} 28. Bc6
{[%clk 0:01:47.2]} 28... Ne5 {[%clk 0:00:17.1]} 29. Qb7 {[%clk 0:01:44.3]} 29...
Nxc6 {[%clk 0:00:15.4]} 30. Qxc6 {[%clk 0:01:46]} 30... Re5 {[%clk 0:00:16]} 31.
Qc2+ {[%clk 0:01:41.7]} 31... Qe4 {[%clk 0:00:16.2]} 32. Qb2 {[%clk 0:01:37.6]}
32... Ng4 {[%clk 0:00:16.4]} 33. h3 {[%clk 0:01:32.4]} 33... Nf6 {[%clk
0:00:17.2]} 34. Rd1 {[%clk 0:01:32.5]} 34... Nd5 {[%clk 0:00:17.5]} 35. Nd3
{[%clk 0:01:04]} 35... Re7 {[%clk 0:00:14.9]} 36. Nc5 {[%clk 0:01:05.1]} 36...
Qxb4 {[%clk 0:00:14.6]} 37. Qc2+ {[%clk 0:01:06.1]} 37... g6 {[%clk 0:00:11.2]}
38. Rxd5 {[%clk 0:01:07.4]} 38... Rc7 {[%clk 0:00:11]} 39. Rd7+ {[%clk
0:01:05.1]} 39... Rxd7 {[%clk 0:00:12.3]} 40. Nxd7 {[%clk 0:01:07]} 40... Qe1+
{[%clk 0:00:14.2]} 41. Kh2 {[%clk 0:01:08.4]} 41... Qe6 {[%clk 0:00:15.6]} 42.
Nf8+ {[%clk 0:01:08.8]} 1-0

[Event "*** Titled Tuesday Blitz"]
[Site "Chess.com"]
[Date "2019.07.02"]
[Round "1"]
[White "Aknok"]
[Black "chessdjw"]
[Result "0-1"]
[WhiteElo "2373"]
[BlackElo "2716"]
[TimeControl "180+2"]
[EndTime "13:08:03 PDT"]
[Termination "chessdjw won by resignation"]

1. d4 {[%clk 0:03:00.9]} 1... Nf6 {[%clk 0:03:00.9]} 2. c4 {[%clk 0:03:01.1]}
2... e6 {[%clk 0:03:02]} 3. Nf3 {[%clk 0:03:01.8]} 3... d5 {[%clk 0:03:03.4]} 4.
Nc3 {[%clk 0:03:02.1]} 4... Bb4 {[%clk 0:03:04.6]} 5. Bg5 {[%clk 0:03:02.8]}
5... h6 {[%clk 0:03:05.1]} 6. Bxf6 {[%clk 0:03:03.4]} 6... Qxf6 {[%clk 0:03:07]}
7. e3 {[%clk 0:03:05.2]} 7... O-O {[%clk 0:03:06.3]} 8. Rc1 {[%clk 0:03:03]}
8... dxc4 {[%clk 0:03:06.4]} 9. Bxc4 {[%clk 0:03:03.2]} 9... c5 {[%clk 0:03:08]}
10. a3 {[%clk 0:02:44.7]} 10... Bxc3+ {[%clk 0:02:54.7]} 11. bxc3 {[%clk
0:02:43.2]} 11... Nc6 {[%clk 0:02:45.7]} 12. O-O {[%clk 0:02:43.2]} 12... Rd8
{[%clk 0:02:46.8]} 13. Bd3 {[%clk 0:02:03.2]} 13... b6 {[%clk 0:02:26.8]} 14.
Qa4 {[%clk 0:01:30.6]} 14... Bd7 {[%clk 0:02:17.1]} 15. Bb5 {[%clk 0:01:11.6]}
15... Rdc8 {[%clk 0:01:48.8]} 16. Qd1 {[%clk 0:00:40]} 16... a6 {[%clk
0:01:45.5]} 17. Bd3 {[%clk 0:00:39.1]} 17... e5 {[%clk 0:01:30.5]} 18. Be4
{[%clk 0:00:30.9]} 18... exd4 {[%clk 0:01:22.3]} 19. cxd4 {[%clk 0:00:30.2]}
19... cxd4 {[%clk 0:01:19.7]} 20. Nxd4 {[%clk 0:00:26.5]} 20... Nxd4 {[%clk
0:01:19.5]} 21. exd4 {[%clk 0:00:18.8]} 21... Rxc1 {[%clk 0:01:18.3]} 22. Qxc1
{[%clk 0:00:20.4]} 22... Rc8 {[%clk 0:01:19.7]} 23. Qe3 {[%clk 0:00:19.1]} 23...
b5 {[%clk 0:01:17.9]} 24. d5 {[%clk 0:00:16]} 24... Qd6 {[%clk 0:01:14.3]} 25.
Rd1 {[%clk 0:00:13.8]} 25... Rc4 {[%clk 0:01:13]} 26. g3 {[%clk 0:00:12.6]}
26... a5 {[%clk 0:01:09.5]} 27. Bf3 {[%clk 0:00:08.6]} 27... g5 {[%clk
0:01:01.3]} 28. Qa7 {[%clk 0:00:06.8]} 28... b4 {[%clk 0:00:55.6]} 29. Qxa5
{[%clk 0:00:06.7]} 29... bxa3 {[%clk 0:00:54.7]} 30. Be2 {[%clk 0:00:08]} 30...
Ra4 {[%clk 0:00:49.3]} 31. Qd8+ {[%clk 0:00:08.7]} 31... Kg7 {[%clk 0:00:50.4]}
32. Bb5 {[%clk 0:00:09.7]} 32... Ra7 {[%clk 0:00:36.5]} 33. h4 {[%clk
0:00:10.8]} 33... a2 {[%clk 0:00:36.3]} 34. hxg5 {[%clk 0:00:11.2]} 34... a1=Q
{[%clk 0:00:37.2]} 35. gxh6+ {[%clk 0:00:12]} 35... Qxh6 {[%clk 0:00:36.5]} 36.
Rxa1 {[%clk 0:00:09.6]} 36... Rxa1+ {[%clk 0:00:36.2]} 0-1

[Event "*** Titled Tuesday Blitz"]
[Site "Chess.com"]
[Date "2019.07.02"]
[Round "1"]
[White "Sadikhov_Ulvi"]
[Black "WeAintSurePal"]
[Result "1-0"]
[WhiteElo "2692"]
[BlackElo "2338"]
[TimeControl "180+2"]
[EndTime "13:08:06 PDT"]
[Termination "Sadikhov_Ulvi won by resignation"]

1. e4 {[%clk 0:03:01.2]} 1... c6 {[%clk 0:02:59.4]} 2. c4 {[%clk 0:03:01]} 2...
e5 {[%clk 0:02:48.4]} 3. Nf3 {[%clk 0:03:01.4]} 3... d6 {[%clk 0:02:36.5]} 4.
Nc3 {[%clk 0:03:01.7]} 4... Nf6 {[%clk 0:02:36.7]} 5. Be2 {[%clk 0:02:58.8]}
5... Be7 {[%clk 0:02:35.9]} 6. d4 {[%clk 0:02:59.6]} 6... Nbd7 {[%clk
0:02:35.5]} 7. O-O {[%clk 0:03:00]} 7... O-O {[%clk 0:02:36.5]} 8. Re1 {[%clk
0:03:00.7]} 8... Re8 {[%clk 0:02:37.7]} 9. h3 {[%clk 0:02:59.8]} 9... Qc7 {[%clk
0:02:38.2]} 10. Be3 {[%clk 0:02:59.4]} 10... Nf8 {[%clk 0:02:27.4]} 11. Qc2
{[%clk 0:02:58.2]} 11... Ng6 {[%clk 0:02:24.3]} 12. d5 {[%clk 0:02:53.2]} 12...
c5 {[%clk 0:02:13.6]} 13. a3 {[%clk 0:02:53.2]} 13... h6 {[%clk 0:02:01.7]} 14.
b4 {[%clk 0:02:51.8]} 14... b6 {[%clk 0:01:58.3]} 15. Rab1 {[%clk 0:02:51.3]}
15... Nh7 {[%clk 0:01:54.4]} 16. Nb5 {[%clk 0:02:43.7]} 16... Qd8 {[%clk
0:01:54.9]} 17. bxc5 {[%clk 0:02:43.6]} 17... bxc5 {[%clk 0:01:56.1]} 18. Bd2
{[%clk 0:02:40.3]} 18... Ng5 {[%clk 0:01:47.4]} 19. Nxg5 {[%clk 0:02:38.5]}
19... Bxg5 {[%clk 0:01:47.3]} 20. Bg4 {[%clk 0:02:31.4]} 20... Bxg4 {[%clk
0:01:45]} 21. hxg4 {[%clk 0:02:32.2]} 21... a6 {[%clk 0:01:45.5]} 22. Nc3 {[%clk
0:02:30]} 22... Bxd2 {[%clk 0:01:45.6]} 23. Qxd2 {[%clk 0:02:30.7]} 23... Rb8
{[%clk 0:01:47.1]} 24. Ne2 {[%clk 0:02:25.6]} 24... Qd7 {[%clk 0:01:46.7]} 25.
f3 {[%clk 0:02:18]} 25... Qa4 {[%clk 0:01:46.5]} 26. Qc3 {[%clk 0:02:16.6]}
26... Rec8 {[%clk 0:01:27.3]} 27. Kf2 {[%clk 0:02:11.5]} 27... Nf8 {[%clk
0:01:24.4]} 28. Ng3 {[%clk 0:02:11]} 28... g6 {[%clk 0:01:21.5]} 29. Nf1 {[%clk
0:02:01.8]} 29... Nd7 {[%clk 0:01:21.6]} 30. Ne3 {[%clk 0:02:02.7]} 30... Rxb1
{[%clk 0:01:20.5]} 31. Rxb1 {[%clk 0:02:02.9]} 31... Rb8 {[%clk 0:01:21.7]} 32.
Rxb8+ {[%clk 0:02:03.9]} 32... Nxb8 {[%clk 0:01:23.6]} 33. Qb2 {[%clk 0:02:00]}
33... Nd7 {[%clk 0:01:24.8]} 34. Qb7 {[%clk 0:01:51.7]} 34... Kg7 {[%clk
0:01:07.3]} 35. Qc6 {[%clk 0:01:46.3]} 35... Qa5 {[%clk 0:01:00.2]} 36. Ke2
{[%clk 0:01:41.1]} 36... Nf6 {[%clk 0:00:49.2]} 37. Qxd6 {[%clk 0:01:40]} 37...
Qc3 {[%clk 0:00:47.3]} 38. Qxc5 {[%clk 0:01:38.4]} 38... Qb2+ {[%clk 0:00:48.2]}
39. Kf1 {[%clk 0:01:34.9]} 39... Qc1+ {[%clk 0:00:49.3]} 40. Ke2 {[%clk
0:01:31.4]} 40... Qb2+ {[%clk 0:00:49.8]} 41. Kd3 {[%clk 0:01:31.1]} 41... Qb1+
{[%clk 0:00:39.5]} 42. Kd2 {[%clk 0:01:30.6]} 42... Qa2+ {[%clk 0:00:30.1]} 43.
Nc2 {[%clk 0:01:28.6]} 43... Qb3 {[%clk 0:00:28.1]} 44. Qb4 {[%clk 0:01:27.5]}
44... Qa2 {[%clk 0:00:25.4]} 45. c5 {[%clk 0:01:28]} 45... Nxd5 {[%clk
0:00:26.5]} 46. exd5 {[%clk 0:01:28.4]} 46... Qxd5+ {[%clk 0:00:28.4]} 47. Ke2
{[%clk 0:01:28.3]} 47... f5 {[%clk 0:00:27.1]} 48. gxf5 {[%clk 0:01:27.3]} 48...
gxf5 {[%clk 0:00:29]} 49. Qc3 {[%clk 0:01:28.5]} 49... Kg6 {[%clk 0:00:29]} 50.
c6 {[%clk 0:01:29.5]} 50... e4 {[%clk 0:00:29.4]} 51. c7 {[%clk 0:01:29.4]}
51... exf3+ {[%clk 0:00:30]} 52. gxf3 {[%clk 0:01:30.1]} 52... Qe6+ {[%clk
0:00:31.4]} 53. Kf1 {[%clk 0:01:29.7]} 1-0

[Event "*** Titled Tuesday Blitz"]
[Site "Chess.com"]
[Date "2019.07.02"]
[Round "1"]
[White "Paralinch"]
[Black "marianokar"]
[Result "0-1"]
[WhiteElo "2814"]
[BlackElo "2447"]
[TimeControl "180+2"]
[EndTime "13:08:07 PDT"]
[Termination "marianokar won by resignation"]

1. e4 {[%clk 0:03:01.9]} 1... e5 {[%clk 0:02:56.7]} 2. Nf3 {[%clk 0:03:02.9]}
2... Nc6 {[%clk 0:02:57]} 3. Nc3 {[%clk 0:03:04.4]} 3... Nf6 {[%clk 0:02:55.1]}
4. d4 {[%clk 0:03:05.8]} 4... exd4 {[%clk 0:02:55.4]} 5. Nxd4 {[%clk 0:03:07.7]}
5... Bb4 {[%clk 0:02:55.8]} 6. Nxc6 {[%clk 0:03:08.9]} 6... bxc6 {[%clk
0:02:56.8]} 7. Bd3 {[%clk 0:03:10.4]} 7... d5 {[%clk 0:02:56.2]} 8. exd5 {[%clk
0:03:12.3]} 8... cxd5 {[%clk 0:02:56.3]} 9. Qe2+ {[%clk 0:03:12.9]} 9... Be7
{[%clk 0:02:51.1]} 10. O-O {[%clk 0:02:52.5]} 10... O-O {[%clk 0:02:51.3]} 11.
Bf4 {[%clk 0:02:50.6]} 11... c5 {[%clk 0:02:43.8]} 12. Rad1 {[%clk 0:02:48.6]}
12... Bb7 {[%clk 0:02:33.1]} 13. Rfe1 {[%clk 0:02:46.4]} 13... Bd6 {[%clk
0:02:24.4]} 14. Bxd6 {[%clk 0:02:46.6]} 14... Qxd6 {[%clk 0:02:25.9]} 15. Qe7
{[%clk 0:02:48.2]} 15... Qc6 {[%clk 0:02:11.3]} 16. Bb5 {[%clk 0:02:44.4]} 16...
Qb6 {[%clk 0:02:12.3]} 17. Bf1 {[%clk 0:02:45.9]} 17... Rfe8 {[%clk 0:02:01.7]}
18. Na4 {[%clk 0:02:40.9]} 18... Qc6 {[%clk 0:01:47.7]} 19. Qxc5 {[%clk
0:02:31.4]} 19... Qxa4 {[%clk 0:01:44.7]} 20. Rxe8+ {[%clk 0:02:28.8]} 20...
Qxe8 {[%clk 0:01:45.1]} 21. h3 {[%clk 0:02:26.2]} 21... Qc6 {[%clk 0:01:42.2]}
22. Qb4 {[%clk 0:02:12.3]} 22... a5 {[%clk 0:01:40.9]} 23. Qd2 {[%clk
0:02:12.8]} 23... Ne4 {[%clk 0:01:39.7]} 24. Qe3 {[%clk 0:02:03.4]} 24... Qc5
{[%clk 0:01:26.8]} 25. Qxc5 {[%clk 0:01:58.2]} 25... Nxc5 {[%clk 0:01:27]} 26.
b3 {[%clk 0:01:59.7]} 26... Kf8 {[%clk 0:01:25.4]} 27. c4 {[%clk 0:01:59]} 27...
Rd8 {[%clk 0:01:19.6]} 28. cxd5 {[%clk 0:01:59.3]} 28... Rxd5 {[%clk 0:01:19.8]}
29. Rc1 {[%clk 0:02:00.9]} 29... Ne6 {[%clk 0:01:16.5]} 30. Bc4 {[%clk
0:01:59.4]} 30... Rd2 {[%clk 0:01:14.7]} 31. a4 {[%clk 0:01:59.5]} 31... Bd5
{[%clk 0:01:09.8]} 32. Bb5 {[%clk 0:01:55.4]} 32... Bxb3 {[%clk 0:01:05.3]} 33.
Rc8+ {[%clk 0:01:57]} 33... Ke7 {[%clk 0:01:05.7]} 34. Ra8 {[%clk 0:01:58.1]}
34... Nd4 {[%clk 0:00:57.3]} 35. Ra7+ {[%clk 0:01:58]} 35... Kf6 {[%clk
0:00:57.5]} 36. Ra6+ {[%clk 0:01:58.3]} 36... Be6 {[%clk 0:00:58]} 37. Rxa5
{[%clk 0:01:58.1]} 37... Nxb5 {[%clk 0:00:59]} 38. Rxb5 {[%clk 0:02:00]} 38...
Ra2 {[%clk 0:00:56.4]} 39. a5 {[%clk 0:02:01.3]} 39... g6 {[%clk 0:00:45.2]} 40.
g4 {[%clk 0:02:02]} 40... h6 {[%clk 0:00:44.6]} 41. Kg2 {[%clk 0:02:02.2]} 41...
Rd2 {[%clk 0:00:41.3]} 42. Rb4 {[%clk 0:01:56.3]} 42... Bd5+ {[%clk 0:00:37.3]}
43. Kf1 {[%clk 0:01:55.8]} 43... Ra2 {[%clk 0:00:37]} 44. Rb6+ {[%clk
0:01:51.7]} 44... Ke7 {[%clk 0:00:37.9]} 45. a6 {[%clk 0:01:44.3]} 45... Rxa6
{[%clk 0:00:37]} 46. Rb4 {[%clk 0:01:44.8]} 46... Ra1+ {[%clk 0:00:37]} 47. Ke2
{[%clk 0:01:46.1]} 47... Rh1 {[%clk 0:00:37.6]} 48. Rd4 {[%clk 0:01:46.3]} 48...
Ke6 {[%clk 0:00:38.2]} 49. Ra4 {[%clk 0:01:42.8]} 49... Rxh3 {[%clk 0:00:38.9]}
50. Ra6+ {[%clk 0:01:44.3]} 50... Ke5 {[%clk 0:00:39.5]} 51. Ra5 {[%clk
0:01:46.2]} 51... Rb3 {[%clk 0:00:34.5]} 52. Ra4 {[%clk 0:01:46.7]} 52... h5
{[%clk 0:00:29.8]} 53. gxh5 {[%clk 0:01:48.6]} 53... gxh5 {[%clk 0:00:31.2]} 54.
Rh4 {[%clk 0:01:50]} 54... Bf3+ {[%clk 0:00:31.7]} 55. Kd2 {[%clk 0:01:51.6]}
55... Bg4 {[%clk 0:00:32.7]} 56. Rh1 {[%clk 0:01:51.8]} 56... Kf4 {[%clk
0:00:33.3]} 57. Ra1 {[%clk 0:01:52.1]} 57... Rb2+ {[%clk 0:00:33.6]} 58. Kc3
{[%clk 0:01:53.3]} 58... Rxf2 {[%clk 0:00:34.1]} 59. Ra6 {[%clk 0:01:55.2]}
59... Kg3 {[%clk 0:00:33.8]} 0-1

[Event "*** Titled Tuesday Blitz"]
[Site "Chess.com"]
[Date "2019.07.02"]
[Round "1"]
[White "kosmeg"]
[Black "VladDobrov"]
[Result "1/2-1/2"]
[WhiteElo "2449"]
[BlackElo "2837"]
[TimeControl "180+2"]
[EndTime "13:08:09 PDT"]
[Termination "Game drawn by agreement"]

1. d4 {[%clk 0:03:01.8]} 1... Nf6 {[%clk 0:03:00.9]} 2. c4 {[%clk 0:03:02.8]}
2... e6 {[%clk 0:03:02.4]} 3. g3 {[%clk 0:03:03.5]} 3... c5 {[%clk 0:03:02.5]}
4. Nf3 {[%clk 0:03:03.8]} 4... cxd4 {[%clk 0:03:02.5]} 5. Nxd4 {[%clk
0:03:05.7]} 5... Bb4+ {[%clk 0:03:01.9]} 6. Bd2 {[%clk 0:03:05.4]} 6... Bc5
{[%clk 0:03:03.1]} 7. Nb3 {[%clk 0:03:05.4]} 7... Be7 {[%clk 0:03:04]} 8. Bg2
{[%clk 0:03:06.6]} 8... Nc6 {[%clk 0:03:05.5]} 9. O-O {[%clk 0:03:07.6]} 9... b6
{[%clk 0:03:06.3]} 10. Nc3 {[%clk 0:03:08.2]} 10... Ba6 {[%clk 0:03:04.6]} 11.
Nb5 {[%clk 0:03:03.7]} 11... d5 {[%clk 0:02:56.7]} 12. cxd5 {[%clk 0:02:42.7]}
12... Nxd5 {[%clk 0:02:53.7]} 13. Nc3 {[%clk 0:02:34.4]} 13... Bf6 {[%clk
0:02:21.8]} 14. Nxd5 {[%clk 0:02:27.7]} 14... exd5 {[%clk 0:02:23.7]} 15. Rc1
{[%clk 0:02:26.8]} 15... Qd7 {[%clk 0:01:37]} 16. Bc3 {[%clk 0:02:17.6]} 16...
Bxc3 {[%clk 0:01:22.8]} 17. Rxc3 {[%clk 0:02:19.5]} 17... Ne7 {[%clk 0:01:19.1]}
18. Nd4 {[%clk 0:02:02.3]} 18... O-O {[%clk 0:01:18.2]} 19. Qd2 {[%clk
0:01:59.7]} 19... Rac8 {[%clk 0:01:11.1]} 20. Rfc1 {[%clk 0:02:00.5]} 20... Rxc3
{[%clk 0:01:12.1]} 21. Rxc3 {[%clk 0:01:59.5]} 21... h6 {[%clk 0:01:10.6]} 22.
e3 {[%clk 0:01:56.6]} 22... Rd8 {[%clk 0:01:10.5]} 23. h3 {[%clk 0:01:54.5]}
23... Bb7 {[%clk 0:01:03.4]} 24. Qc2 {[%clk 0:01:52.2]} 24... Rc8 {[%clk
0:01:04.1]} 25. Rxc8+ {[%clk 0:01:52]} 25... Bxc8 {[%clk 0:01:05.1]} 26. Qc3
{[%clk 0:01:43.4]} 26... Bb7 {[%clk 0:01:06.3]} 27. b3 {[%clk 0:01:42.9]} 27...
Nc6 {[%clk 0:00:44.3]} 28. Nxc6 {[%clk 0:01:40.6]} 28... Bxc6 {[%clk 0:00:46.2]}
29. Qd4 {[%clk 0:01:37.5]} 29... Qe6 {[%clk 0:00:47.2]} 30. h4 {[%clk
0:01:25.6]} 30... f6 {[%clk 0:00:48.2]} 31. b4 {[%clk 0:01:14.7]} 31... Kf7
{[%clk 0:00:48.7]} 32. a3 {[%clk 0:01:12]} 32... Ke7 {[%clk 0:00:49.4]} 33. Kh2
{[%clk 0:01:06.1]} 33... Kd6 {[%clk 0:00:47.5]} 34. Bh3 {[%clk 0:01:00.4]} 34...
Qe4 {[%clk 0:00:44.8]} 35. Bf1 {[%clk 0:00:50.1]} 35... Qxd4 {[%clk 0:00:33.5]}
36. exd4 {[%clk 0:00:50.5]} 36... a5 {[%clk 0:00:34.6]} 37. Kg2 {[%clk 0:00:44]}
37... Ba4 {[%clk 0:00:33.9]} 38. Kf3 {[%clk 0:00:40.7]} 38... axb4 {[%clk
0:00:34]} 39. axb4 {[%clk 0:00:41.3]} 39... Bc2 {[%clk 0:00:30.5]} 40. Ke3
{[%clk 0:00:41.2]} 40... Kc6 {[%clk 0:00:30]} 41. Kd2 {[%clk 0:00:39.8]} 41...
Be4 {[%clk 0:00:29]} 42. Kc3 {[%clk 0:00:40.3]} 42... Kd6 {[%clk 0:00:29.2]}
1/2-1/2

[Event "*** Titled Tuesday Blitz"]
[Site "Chess.com"]
[Date "2019.07.02"]
[Round "1"]
[White "NemtsevIgor"]
[Black "lavr92"]
[Result "0-1"]
[WhiteElo "2297"]
[BlackElo "2621"]
[TimeControl "180+2"]
[EndTime "13:08:10 PDT"]
[Termination "lavr92 won by resignation"]

1. d4 {[%clk 0:03:00.7]} 1... d5 {[%clk 0:02:58.6]} 2. e4 {[%clk 0:03:00.7]}
2... dxe4 {[%clk 0:02:59.1]} 3. Nc3 {[%clk 0:03:01.9]} 3... Nf6 {[%clk
0:02:58.2]} 4. Be3 {[%clk 0:03:02.9]} 4... g6 {[%clk 0:02:56.1]} 5. f3 {[%clk
0:03:03.6]} 5... exf3 {[%clk 0:02:56.3]} 6. Nxf3 {[%clk 0:03:04.5]} 6... Bg7
{[%clk 0:02:56.8]} 7. Bc4 {[%clk 0:03:01.7]} 7... O-O {[%clk 0:02:27.3]} 8. O-O
{[%clk 0:03:02.2]} 8... Nbd7 {[%clk 0:02:24]} 9. Qe1 {[%clk 0:03:00.4]} 9... Nb6
{[%clk 0:02:20.9]} 10. Bb3 {[%clk 0:03:00.2]} 10... Nfd5 {[%clk 0:02:06.1]} 11.
Bg5 {[%clk 0:02:53.4]} 11... h6 {[%clk 0:01:56.3]} 12. Bd2 {[%clk 0:02:42.2]}
12... Nxc3 {[%clk 0:01:44.9]} 13. bxc3 {[%clk 0:02:42.9]} 13... e6 {[%clk
0:01:38.5]} 14. Ne5 {[%clk 0:02:35.9]} 14... Nd5 {[%clk 0:01:32.8]} 15. Qg3
{[%clk 0:02:30.1]} 15... c5 {[%clk 0:01:12.8]} 16. Kh1 {[%clk 0:02:25.5]} 16...
Qc7 {[%clk 0:01:02.2]} 17. Bxd5 {[%clk 0:02:13.3]} 17... exd5 {[%clk 0:01:02.9]}
18. Bf4 {[%clk 0:02:12.4]} 18... Qb6 {[%clk 0:00:35.9]} 19. Rad1 {[%clk
0:02:03]} 19... Bf5 {[%clk 0:00:36.1]} 20. Ng4 {[%clk 0:01:53.8]} 20... Bxg4
{[%clk 0:00:32.2]} 21. Qxg4 {[%clk 0:01:54.8]} 21... cxd4 {[%clk 0:00:33.3]} 22.
cxd4 {[%clk 0:01:55.6]} 22... Rac8 {[%clk 0:00:34.6]} 23. Rf2 {[%clk 0:01:46.3]}
23... Bxd4 {[%clk 0:00:31.8]} 24. Rfd2 {[%clk 0:01:41.8]} 24... Bg7 {[%clk
0:00:31.6]} 25. Rxd5 {[%clk 0:01:40.5]} 25... Rxc2 {[%clk 0:00:32.6]} 26. h4
{[%clk 0:01:39.7]} 26... h5 {[%clk 0:00:32]} 27. Qf3 {[%clk 0:01:34]} 27... Rxa2
{[%clk 0:00:32]} 28. Rd7 {[%clk 0:01:30.3]} 28... Qc6 {[%clk 0:00:32.7]} 29.
R1d5 {[%clk 0:01:28.6]} 29... a5 {[%clk 0:00:29.7]} 30. Qd3 {[%clk 0:01:18.4]}
30... Qe6 {[%clk 0:00:27.6]} 31. Bg3 {[%clk 0:01:12.8]} 31... Qg4 {[%clk
0:00:26.4]} 32. Kh2 {[%clk 0:01:11.4]} 32... a4 {[%clk 0:00:25.6]} 33. Rd8
{[%clk 0:01:08.2]} 33... Qe2 {[%clk 0:00:25.7]} 34. Rxf8+ {[%clk 0:01:08.8]}
34... Bxf8 {[%clk 0:00:26.7]} 35. Qxe2 {[%clk 0:01:04.2]} 35... Rxe2 {[%clk
0:00:27.7]} 36. Rd8 {[%clk 0:01:06.1]} 36... Kg7 {[%clk 0:00:29]} 37. Rb8 {[%clk
0:01:01.1]} 37... a3 {[%clk 0:00:25.1]} 38. Rxb7 {[%clk 0:01:00.1]} 38... a2
{[%clk 0:00:26.4]} 39. Ra7 {[%clk 0:01:01.3]} 39... Be7 {[%clk 0:00:27.4]} 40.
Kh3 {[%clk 0:00:59.5]} 40... Bf6 {[%clk 0:00:28.4]} 0-1

[Event "*** Titled Tuesday Blitz"]
[Site "Chess.com"]
[Date "2019.07.02"]
[Round "1"]
[White "Naruto-K"]
[Black "sandager"]
[Result "1-0"]
[WhiteElo "2536"]
[BlackElo "2144"]
[TimeControl "180+2"]
[EndTime "13:08:14 PDT"]
[Termination "Naruto-K won by resignation"]

1. Nf3 {[%clk 0:02:57.5]} 1... Nf6 {[%clk 0:02:59.5]} 2. c4 {[%clk 0:02:58]}
2... g6 {[%clk 0:02:59.9]} 3. Nc3 {[%clk 0:02:58.6]} 3... d5 {[%clk 0:02:57.8]}
4. cxd5 {[%clk 0:02:59]} 4... Nxd5 {[%clk 0:02:58.6]} 5. e4 {[%clk 0:02:59.9]}
5... Nxc3 {[%clk 0:02:58.6]} 6. dxc3 {[%clk 0:03:01.2]} 6... Bg7 {[%clk
0:03:00]} 7. Qxd8+ {[%clk 0:03:00.9]} 7... Kxd8 {[%clk 0:03:00.8]} 8. Bf4 {[%clk
0:03:00.7]} 8... c6 {[%clk 0:02:48.2]} 9. Bc4 {[%clk 0:03:00.3]} 9... Ke8 {[%clk
0:02:46]} 10. Ng5 {[%clk 0:02:55.2]} 10... e6 {[%clk 0:02:43.7]} 11. h4 {[%clk
0:02:44.4]} 11... h6 {[%clk 0:02:34.6]} 12. Nf3 {[%clk 0:02:44.9]} 12... Nd7
{[%clk 0:02:35.8]} 13. O-O-O {[%clk 0:02:38.4]} 13... e5 {[%clk 0:02:30.7]} 14.
Bg3 {[%clk 0:02:28.5]} 14... f6 {[%clk 0:02:21.5]} 15. Nd2 {[%clk 0:02:13.1]}
15... Nc5 {[%clk 0:02:21.4]} 16. f3 {[%clk 0:02:07.3]} 16... Be6 {[%clk
0:02:20.9]} 17. Bf2 {[%clk 0:02:07.2]} 17... Bxc4 {[%clk 0:01:45.8]} 18. Nxc4
{[%clk 0:02:08]} 18... Bf8 {[%clk 0:01:44]} 19. Nd6+ {[%clk 0:01:39.4]} 19...
Bxd6 {[%clk 0:01:35.7]} 20. Rxd6 {[%clk 0:01:41.3]} 20... Nd7 {[%clk 0:01:23.2]}
21. Rhd1 {[%clk 0:01:41.3]} 21... Rh7 {[%clk 0:01:22.2]} 22. Be3 {[%clk
0:01:23.3]} 22... g5 {[%clk 0:01:20.7]} 23. hxg5 {[%clk 0:01:13.1]} 23... hxg5
{[%clk 0:01:21.1]} 24. Re6+ {[%clk 0:01:13.5]} 24... Kf8 {[%clk 0:01:11.8]} 25.
a4 {[%clk 0:00:54.8]} 25... Re8 {[%clk 0:01:03.2]} 26. Red6 {[%clk 0:00:54.6]}
26... Ree7 {[%clk 0:00:41.7]} 27. Bxa7 {[%clk 0:00:49.1]} 27... Ke8 {[%clk
0:00:42.5]} 28. a5 {[%clk 0:00:37]} 28... Rh2 {[%clk 0:00:41]} 29. R1d2 {[%clk
0:00:35.7]} 29... Rhh7 {[%clk 0:00:26.9]} 30. Be3 {[%clk 0:00:31.1]} 30... Ref7
{[%clk 0:00:08]} 31. Kc2 {[%clk 0:00:30.6]} 31... Kd8 {[%clk 0:00:08.4]} 32. a6
{[%clk 0:00:27]} 32... Kc8 {[%clk 0:00:08.4]} 33. a7 {[%clk 0:00:25.8]} 33...
Nb6 {[%clk 0:00:07.6]} 34. Bxb6 {[%clk 0:00:21.9]} 1-0